lending/lending_fUSD_20260222
["ID","MTS","AMOUNT","RATE_DAILY","PERIOD"]
[406345574,1771771841592,-9999.99,0.0004,120]
[406345575,1771771841602,-9999.99,0.0004,120]
[406345576,1771771841612,-10000.0,0.0004,120]
[406345577,1771771841621,-9999.99,0.0004,120]
[406345578,1771771841632,-18268.3,0.0004,120]
[406345579,1771771841644,-10000.0,0.0004,120]
[406345580,1771771841654,-153.0,0.0004,120]
[406345581,1771771841664,-300.0,0.0004,120]
[406345582,1771771841674,-160.0,0.0004,120]
[406345583,1771771841683,-200.9056829,0.0004,2]
[406345584,1771771841693,-150.51,0.0004,2]
[406345585,1771771841704,-500.0,0.00040228,30]
[406345586,1771771841714,-500.0,0.00040228,30]
[406345587,1771771841723,-500.0,0.00040228,30]
[406345588,1771771841733,-500.0,0.00040228,30]
[406345589,1771771841743,-500.0,0.00040228,30]
[406345590,1771771841752,-500.0,0.00040228,30]
[406345591,1771771841762,-713.22320765,0.00040228,30]
[406345592,1771771841771,-500.0,0.00040353,120]
[406345593,1771771841781,-297.211,0.00040533,2]
[406345594,1771771841790,-584.65637397,0.00040613,2]
[406345595,1771771841800,-362.38,0.00040691,2]
[406345596,1771771841810,-727.0,0.00040748,30]
[406345597,1771771841819,-182.60301976,0.00040773,7]
[406345598,1771771841829,-150.0,0.00040773,7]
[406345599,1771771841838,-150.0,0.00040773,7]
[406345600,1771771841848,-152.33380612,0.00040773,7]
[406345601,1771771841858,-150.0,0.00040773,7]
[406345602,1771771841867,-150.0,0.00040773,7]
[406345603,1771771841877,-150.0,0.00040773,7]
[406345604,1771771841887,-150.0,0.00040773,7]
[406345605,1771771841896,-150.0,0.00040773,7]
[406345606,1771771841906,-260.14821752,0.00040773,7]
[406345607,1771771841917,-150.0,0.00040773,7]
[406345608,1771771841927,-150.0,0.00040773,7]
[406345609,1771771841937,-150.0,0.00040773,7]
[406345610,1771771841948,-3514.337,0.00040773,59]
[406345611,1771771841959,-364.299,0.00040773,59]
[406345612,1771771841968,-855.68345202,0.00040789,2]
[406345613,1771771841978,-306.05328416,0.00040789,2]
[406345614,1771771841988,-300.0,0.00040789,2]
[406345615,1771771841998,-884.4819891,0.00040789,2]
[406345616,1771771842007,-300.0,0.00040789,2]
[406345617,1771771842017,-1563.1197537,0.00040789,2]
[406345618,1771771842027,-307.27731077,0.00040789,2]
[406345619,1771771842036,-458.78505011,0.00040789,2]
[406345620,1771771842046,-300.0,0.00040789,2]
[406345621,1771771842055,-363.23234185,0.00040789,2]
[406345622,1771771842065,-371.39458192,0.00040789,2]
[406345623,1771771842075,-300.0,0.00040789,2]
[406345624,1771771842084,-300.0,0.00040789,2]
[406345625,1771771842094,-300.0,0.00040789,2]
[406345626,1771771842103,-518.57454504,0.00040789,2]
[406345627,1771771842112,-306.23261478,0.00040789,2]
[406345628,1771771842121,-300.0,0.00040789,2]
[406345629,1771771842131,-300.0,0.00040789,2]
[406345630,1771771842140,-300.0,0.00040789,2]
[406345631,1771771842150,-300.0,0.00040789,2]
[406345632,1771771842159,-614.54850457,0.00040789,2]
[406345633,1771771842169,-300.0,0.00040789,2]
[406345634,1771771842178,-1082.06179791,0.00040789,2]
[406345635,1771771842187,-300.0,0.00040789,2]
[406345636,1771771842196,-300.0,0.00040789,2]
[406345637,1771771842205,-855.68345202,0.00040789,2]
[406345638,1771771842215,-306.05328416,0.00040789,2]
[406345639,1771771842224,-300.0,0.00040789,2]
[406345640,1771771842233,-884.4819891,0.00040789,2]
[406345641,1771771842242,-1560.97026512,0.00040789,2]
[406345642,1771771842251,-307.27731077,0.00040789,2]
[406345643,1771771842260,-458.78505011,0.00040789,2]
[406345644,1771771842270,-300.0,0.00040789,2]
[406345645,1771771842282,-371.39458192,0.00040789,2]
[406345646,1771771842291,-300.0,0.00040789,2]
[406345647,1771771842300,-300.0,0.00040789,2]
[406345648,1771771842309,-518.57454504,0.00040789,2]
[406345649,1771771842319,-306.23261478,0.00040789,2]
[406345650,1771771842328,-522.17806505,0.00040789,2]
[406345651,1771771842338,-300.0,0.00040789,2]
[406345652,1771771842350,-373.39114995,0.00040789,2]
[406345653,1771771842359,-300.0,0.00040789,2]
[406345654,1771771842368,-1082.06179791,0.00040789,2]
[406345655,1771771842378,-300.0,0.00040789,2]
[406345656,1771771842387,-482.01,0.000408,30]
[406345657,1771771842397,-218.977161,0.00040807,60]
[406345658,1771771842406,-182.60301976,0.00040818,7]
[406345659,1771771842415,-182.60301976,0.00040864,7]
[406345660,1771771842424,-11873.63,0.000409,14]
[406345661,1771771842434,-182.60301976,0.0004091,7]
[406345662,1771771842443,-100299.0,0.0004095,60]
[406345663,1771771842452,-182.60301976,0.00040956,7]
[406345664,1771771842462,-150.0,0.00040973,5]
[406345665,1771771842471,-5143.50717043,0.00040992,120]
[406345666,1771771842480,-593.86292334,0.00040992,120]
[406345667,1771771842490,-603.0,0.00040992,120]
[406345668,1771771842499,-10000.0,0.00041,120]
[406345669,1771771842509,-10000.0,0.00041,120]
[406345670,1771771842519,-153.0,0.00041,120]
[406345671,1771771842528,-173.78509278,0.00041,30]
[406345672,1771771842538,-160.0,0.00041,30]
[406345673,1771771842547,-182.60301976,0.00041002,7]
[406345674,1771771842556,-182.60301976,0.00041047,7]
[406345675,1771771842566,-628.0,0.00041059,2]
[406345676,1771771842575,-150.0,0.00041059,2]
[406345677,1771771842585,-150.0,0.00041059,2]
[406345678,1771771842595,-178.0,0.00041059,2]
[406345679,1771771842604,-182.60301976,0.00041093,7]
[406345680,1771771842616,-182.60301976,0.00041139,30]
[406345681,1771771842626,-150.0,0.0004115,30]
[406345682,1771771842636,-182.60301976,0.00041185,30]
[406345683,1771771842646,-11873.63,0.000412,2]
[406345684,1771771842655,-182.60301976,0.0004123,30]
[406345685,1771771842665,-182.60301976,0.00041276,30]
[406345686,1771771842675,-3443.16368822,0.00041307,15]
[406345687,1771771842686,-1000.0,0.00041322,30]
[406345688,1771771842698,-182.60301976,0.00041322,30]
[406345689,1771771842710,-182.60301976,0.00041368,30]
[406345690,1771771842719,-182.60301976,0.00041413,30]
[406345691,1771771842729,-182.60301976,0.00041459,30]
[406345692,1771771842738,-6040.70588714,0.000415,120]
[406345693,1771771842748,-182.60301976,0.00041505,30]
[406345694,1771771842757,-150.70892352,0.00041521,10]
[406345695,1771771842767,-150.0,0.00041528,30]
[406345696,1771771842776,-182.60301976,0.00041551,30]
[406345697,1771771842786,-1000.0,0.00041596,30]
[406345698,1771771842796,-182.60301976,0.00041596,30]
[406345699,1771771842806,-182.60301976,0.00041642,30]
[406345700,1771771842817,-182.60301976,0.00041688,30]
[406345701,1771771842827,-182.60301976,0.00041734,30]
[406345702,1771771842837,-182.60301976,0.00041779,30]
[406345703,1771771842847,-152.0,0.00041807,3]
[406345704,1771771842856,-182.60301976,0.00041825,30]
[406345705,1771771842866,-500.0,0.00041868,120]
[406345706,1771771842877,-1000.0,0.0004187,30]
[406345707,1771771842887,-182.60301976,0.00041871,30]
[406345708,1771771842897,-153.0,0.000419,120]
[406345709,1771771842907,-150.0,0.00041905,30]
[406345710,1771771842916,-150.0,0.00041905,30]
[406345711,1771771842925,-150.0,0.00041905,30]
[406345712,1771771842934,-182.60301976,0.00041917,30]
[406345713,1771771842944,-182.60301976,0.00041962,30]
[406345714,1771771842953,-10000.0,0.00042,120]
[406345715,1771771842963,-10000.0,0.00042,120]
[406345716,1771771842973,-166.0,0.00042,2]
[406345718,1771771842983,-350.0,0.00042,120]
[406345719,1771771842992,-400.00000006,0.00042,3]
[406345720,1771771843002,-182.60301976,0.00042008,30]
[406345721,1771771843011,-199.86,0.00042042,60]
[406345722,1771771843021,-182.60301976,0.00042054,30]
[406345723,1771771843031,-182.60301976,0.000421,30]
[406345724,1771771843041,-1000.0,0.00042144,30]
[406345725,1771771843051,-182.60301976,0.00042146,30]
[406345726,1771771843060,-182.60301976,0.00042191,30]
[406345727,1771771843070,-11873.63,0.000422,14]
[406345728,1771771843079,-182.60301976,0.00042237,30]
[406345729,1771771843089,-200.0,0.00042261,120]
[406345730,1771771843099,-182.60301976,0.00042283,30]
[406345731,1771771843109,-150.0,0.00042283,30]
[406345732,1771771843119,-150.0,0.00042283,30]
[406345733,1771771843129,-150.0,0.00042283,30]
[406345734,1771771843139,-100299.0,0.000423,60]
[406345735,1771771843149,-182.60301976,0.00042329,30]
[406345737,1771771843158,-14211.0,0.00042355,7]
[406345739,1771771843169,-182.60301976,0.00042374,30]
[406345741,1771771843179,-1000.0,0.00042418,30]
[406345743,1771771843188,-182.60301976,0.0004242,30]
[406345745,1771771843198,-182.60301976,0.00042466,30]
[406345746,1771771843208,-2000.0,0.000425,7]
[406345747,1771771843218,-182.60301976,0.00042512,30]
[406345748,1771771843227,-152.59,0.00042526,120]
[406345749,1771771843237,-182.60301976,0.00042557,30]
[406345750,1771771843246,-820.85403489,0.000426,30]
[406345751,1771771843256,-182.60301976,0.00042603,30]
[406345752,1771771843266,-182.60301976,0.00042649,30]
[406345753,1771771843279,-150.0,0.0004266,30]
[406345755,1771771843289,-1000.0,0.00042692,30]
[406345757,1771771843299,-182.60301976,0.00042695,30]
[406345759,1771771843308,-182.60301976,0.0004274,30]
[406345761,1771771843319,-182.60301976,0.00042786,30]
[406345763,1771771843329,-182.60301976,0.00042832,30]
[406345764,1771771843338,-182.60301976,0.00042878,30]
[406345765,1771771843350,-153.0,0.000429,120]
[406345766,1771771843359,-11873.63,0.000429,2]
[406345767,1771771843369,-182.60301976,0.00042923,30]
[406345768,1771771843379,-1000.0,0.00042965,30]
[406345769,1771771843388,-182.60301976,0.00042969,30]
[406345770,1771771843399,-165.0,0.00043,30]
[406345771,1771771843409,-30000.0,0.00043,3]
[406345772,1771771843418,-10000.0,0.00043,120]
[406345773,1771771843427,-10000.0,0.00043,120]
[406345774,1771771843437,-4583.6033389,0.00043003,10]
[406345775,1771771843447,-182.60301976,0.00043015,30]
[406345776,1771771843456,-50000.0,0.00043037,2]
[406345777,1771771843465,-1180.6721,0.00043038,4]
[406345778,1771771843474,-4006.1033,0.00043038,4]
[406345779,1771771843484,-150.0,0.00043038,30]
[406345780,1771771843493,-150.0,0.00043038,30]
[406345781,1771771843503,-150.0,0.00043038,30]
[406345782,1771771843513,-150.0,0.00043038,30]
[406345783,1771771843523,-150.0,0.00043038,30]
[406345784,1771771843533,-150.0,0.00043038,30]
[406345785,1771771843543,-150.0,0.00043038,30]
[406345786,1771771843591,-182.60301976,0.00043061,30]
[406345787,1771771843600,-182.60301976,0.00043106,30]
[406345788,1771771843610,-182.60301976,0.00043152,30]
[406345789,1771771843619,-182.60301976,0.00043198,30]
[406345790,1771771843629,-1000.0,0.00043239,30]
[406345791,1771771843639,-182.60301976,0.00043244,30]
[406345792,1771771843650,-182.60301976,0.0004329,30]
[406345793,1771771843659,-182.60301976,0.00043335,30]
[406345794,1771771843668,-182.60301976,0.00043381,30]
[406345795,1771771843678,-512.398066,0.00043382,120]
[406345796,1771771843687,-150.0,0.00043415,30]
[406345797,1771771843696,-182.60301976,0.00043427,30]
[406345798,1771771843706,-180.0,0.00043452,120]
[406345799,1771771843715,-180.0,0.00043452,120]
[406345800,1771771843724,-182.60301976,0.00043473,30]
[406345801,1771771843733,-200.0,0.00043495,120]
[406345802,1771771843743,-1000.0,0.00043513,30]
[406345803,1771771843752,-182.60301976,0.00043518,30]
[406345804,1771771843762,-182.60301976,0.00043564,30]
[406345805,1771771843772,-182.60301976,0.0004361,30]
[406345806,1771771843781,-100299.0,0.0004365,60]
[406345807,1771771843790,-182.60301976,0.00043656,30]
[406345808,1771771843800,-500.0,0.00043659,60]
[406345809,1771771843809,-500.0,0.00043659,60]
[406345810,1771771843818,-500.0,0.00043659,60]
[406345811,1771771843828,-182.60301976,0.00043701,30]
[406345812,1771771843837,-182.60301976,0.00043747,30]
[406345813,1771771843847,-1000.0,0.00043787,30]
[406345814,1771771843856,-182.60301976,0.00043793,30]
[406345815,1771771843866,-150.0,0.00043793,30]
[406345816,1771771843875,-150.0,0.00043793,30]
[406345817,1771771843885,-150.0,0.00043793,30]
[406345818,1771771843895,-1000.0,0.000438,30]
[406345819,1771771843904,-1273.46153846,0.00043808,120]
[406345820,1771771843914,-574.50621573,0.00043808,120]
[406345821,1771771843923,-200.64803783,0.00043836,2]
[406345822,1771771843932,-1000.0,0.00043836,120]
[406345823,1771771843942,-1000.0,0.00043836,120]
[406345824,1771771843951,-1000.0,0.00043836,120]
[406345825,1771771843960,-1000.0,0.00043836,120]
[406345826,1771771843970,-1000.0,0.00043836,120]
[406345827,1771771843978,-1000.0,0.00043836,120]
[406345828,1771771843987,-182.60301976,0.00043839,30]
[406345829,1771771843996,-182.60301976,0.00043884,30]
[406345830,1771771844006,-153.0,0.000439,120]
[406345831,1771771844015,-2571.15316202,0.0004393,2]
[406345832,1771771844025,-182.60301976,0.0004393,30]
[406345833,1771771844034,-182.60301976,0.00043976,30]
[406345834,1771771844044,-10000.0,0.00044,120]
[406345835,1771771844053,-165.0,0.00044,30]
[406345836,1771771844062,-400.0,0.00044,120]
[406345837,1771771844072,-182.60301976,0.00044022,30]
[406345838,1771771844082,-1000.0,0.00044061,30]
[406345839,1771771844091,-182.60301976,0.00044067,30]
[406345840,1771771844101,-182.60301976,0.00044113,30]
[406345841,1771771844110,-182.60301976,0.00044159,30]
[406345842,1771771844119,-150.0,0.0004417,30]
[406345843,1771771844128,-150.0,0.0004417,30]
[406345844,1771771844137,-150.0,0.0004417,30]
[406345845,1771771844147,-2840.0,0.00044186,16]
[406345846,1771771844156,-182.60301976,0.00044205,30]
[406345847,1771771844166,-182.60301976,0.00044251,30]
[406345848,1771771844175,-182.60301976,0.00044296,30]
[406345849,1771771844185,-1000.0,0.00044335,30]
[406345850,1771771844194,-182.60301976,0.00044342,30]
[406345851,1771771844203,-151.36319148,0.00044362,3]
[406345852,1771771844213,-151.0,0.0004438,120]
[406345853,1771771844223,-500.0,0.00044383,120]
[406345854,1771771844232,-500.0,0.00044383,120]
[406345855,1771771844242,-500.0,0.00044383,120]
[406345856,1771771844252,-500.0,0.00044383,120]
[406345857,1771771844261,-500.0,0.00044383,120]
[406345858,1771771844272,-500.0,0.00044383,120]
[406345859,1771771844283,-500.0,0.00044383,120]
[406345860,1771771844292,-480.82,0.00044383,120]
[406345861,1771771844302,-500.0,0.00044383,120]
[406345862,1771771844312,-500.0,0.00044383,120]
[406345863,1771771844322,-500.0,0.00044383,7]
[406345864,1771771844331,-500.0,0.00044383,7]
[406345865,1771771844341,-500.0,0.00044383,7]
[406345866,1771771844351,-500.0,0.00044383,7]
[406345867,1771771844362,-468.9740126,0.00044383,7]
[406345868,1771771844371,-500.0,0.00044383,2]
[406345869,1771771844381,-500.0,0.00044383,2]
[406345870,1771771844390,-500.0,0.00044383,2]
[406345871,1771771844399,-500.0,0.00044383,2]
[406345872,1771771844408,-500.0,0.00044383,2]
[406345873,1771771844418,-500.0,0.00044383,2]
[406345874,1771771844427,-500.0,0.00044383,2]
[406345875,1771771844436,-500.0,0.00044383,2]
[406345876,1771771844446,-500.0,0.00044383,2]
[406345877,1771771844455,-500.0,0.00044383,120]
[406345878,1771771844465,-500.0,0.00044383,120]
[406345879,1771771844474,-500.0,0.00044383,120]
[406345880,1771771844488,-500.0,0.00044383,120]
[406345881,1771771844497,-500.0,0.00044383,120]
[406345882,1771771844507,-500.0,0.00044383,120]
[406345883,1771771844516,-500.0,0.00044383,120]
[406345884,1771771844526,-500.0,0.00044383,120]
[406345885,1771771844536,-500.0,0.00044383,120]
[406345886,1771771844545,-500.0,0.00044383,120]
[406345887,1771771844555,-430.01122581,0.00044383,90]
[406345888,1771771844564,-27168.2,0.00044383,120]
[406345889,1771771844573,-27168.2,0.00044383,120]
[406345890,1771771844583,-27168.2,0.00044383,120]
[406345891,1771771844591,-27168.2,0.00044383,120]
[406345892,1771771844601,-27168.2,0.00044383,120]
[406345893,1771771844610,-27168.2,0.00044383,120]
[406345894,1771771844620,-27168.2,0.00044383,120]
[406345895,1771771844631,-27168.2,0.00044383,120]
[406345896,1771771844641,-27168.2,0.00044383,120]
[406345897,1771771844651,-27168.2,0.00044383,120]
[406345898,1771771844660,-27168.2,0.00044383,120]
[406345899,1771771844670,-27168.2,0.00044383,120]
[406345900,1771771844680,-27168.2,0.00044383,120]
[406345901,1771771844690,-27168.2,0.00044383,120]
[406345902,1771771844700,-27168.2,0.00044383,120]
[406345903,1771771844710,-27168.2,0.00044383,120]
[406345904,1771771844721,-27168.2,0.00044383,120]
[406345905,1771771844732,-27168.2,0.00044383,120]
[406345906,1771771844744,-27168.2,0.00044383,120]
[406345907,1771771844754,-27168.2,0.00044383,120]
[406345908,1771771844764,-27168.2,0.00044383,120]
[406345909,1771771844775,-27168.2,0.00044383,120]
[406345910,1771771844785,-27168.2,0.00044383,120]
[406345911,1771771844795,-27168.35008739,0.00044383,120]
[406345912,1771771844808,-531.80922538,0.00044383,120]
[406345913,1771771844819,-151.0,0.00044383,120]
[406345914,1771771844829,-151.0,0.00044383,120]
[406345915,1771771844842,-151.0,0.00044383,120]
[406345916,1771771844851,-151.0,0.00044383,120]
[406345917,1771771844861,-440.0,0.00044383,120]
[406345918,1771771844870,-151.0,0.00044383,30]
[406345919,1771771844879,-151.0,0.00044383,120]
[406345920,1771771844888,-151.0,0.00044383,14]
[406345921,1771771844899,-500.0,0.00044383,120]
[406345922,1771771844908,-500.0,0.00044383,120]
[406345923,1771771844918,-360.88870981,0.00044383,120]
[406345924,1771771844927,-151.0,0.00044383,14]
[406345925,1771771844936,-457.87,0.00044383,120]
[406345926,1771771844946,-500.0,0.00044383,120]
[406345927,1771771844955,-500.0,0.00044383,120]
[406345928,1771771844964,-500.0,0.00044383,120]
[406345929,1771771844974,-500.0,0.00044383,2]
[406345930,1771771844983,-500.0,0.00044383,120]
[406345931,1771771844992,-500.0,0.00044383,120]
[406345932,1771771845001,-500.0,0.00044383,120]
[406345933,1771771845011,-500.0,0.00044383,120]
[406345934,1771771845021,-500.0,0.00044383,120]
[406345935,1771771845035,-500.0,0.00044383,120]
[406345936,1771771845045,-500.0,0.00044383,120]
[406345937,1771771845055,-500.0,0.00044383,2]
[406345938,1771771845064,-500.0,0.00044383,120]
[406345939,1771771845074,-574.97601008,0.00044383,2]
[406345940,1771771845084,-500.0,0.00044383,120]
[406345941,1771771845094,-500.0,0.00044383,120]
[406345942,1771771845103,-500.0,0.00044383,120]
[406345943,1771771845112,-564.13516844,0.00044383,120]
[406345944,1771771845122,-500.0,0.00044383,120]
[406345945,1771771845132,-435.62,0.00044383,120]
[406345946,1771771845143,-151.0,0.00044383,120]
[406345947,1771771845153,-500.0,0.00044383,2]
[406345948,1771771845162,-500.0,0.00044383,2]
[406345949,1771771845173,-500.0,0.00044383,2]
[406345950,1771771845184,-500.0,0.00044383,2]
[406345951,1771771845193,-500.0,0.00044383,2]
[406345952,1771771845203,-500.0,0.00044383,2]
[406345953,1771771845213,-153.1974637,0.00044383,2]
[406345954,1771771845223,-503.17853327,0.00044383,120]
[406345955,1771771845236,-500.0,0.00044383,2]
[406345956,1771771845246,-500.0,0.00044383,2]
[406345957,1771771845256,-500.0,0.00044383,2]
[406345958,1771771845265,-500.0,0.00044383,2]
[406345959,1771771845277,-500.0,0.00044383,2]
[406345960,1771771845286,-500.9,0.00044383,2]
[406345961,1771771845295,-302.0,0.00044383,120]
[406345962,1771771845304,-151.0,0.00044383,120]
[406345963,1771771845315,-151.0,0.00044383,120]
[406345964,1771771845324,-151.0,0.00044383,120]
[406345965,1771771845333,-151.0,0.00044383,120]
[406345966,1771771845342,-151.0,0.00044383,120]
[406345967,1771771845354,-269.188708,0.00044383,120]
[406345968,1771771845363,-865.65197602,0.00044383,30]
[406345969,1771771845372,-500.0,0.00044383,120]
[406345970,1771771845381,-500.0,0.00044383,120]
[406345971,1771771845391,-151.0,0.00044383,120]
[406345972,1771771845401,-500.0,0.00044383,120]
[406345973,1771771845411,-500.0,0.00044383,120]
[406345974,1771771845420,-500.0,0.00044383,120]
[406345975,1771771845434,-500.0,0.00044383,120]
[406345976,1771771845443,-157.59139204,0.00044383,120]
[406345977,1771771845453,-151.0,0.00044383,120]
[406345978,1771771845463,-500.0,0.00044383,5]
[406345979,1771771845472,-500.0,0.00044383,5]
[406345980,1771771845482,-500.0,0.00044383,5]
[406345981,1771771845491,-500.0,0.00044383,5]
[406345982,1771771845501,-1357.267446,0.00044383,120]
[406345983,1771771845511,-439.72064626,0.00044383,120]
[406345984,1771771845520,-500.0,0.00044383,120]
[406345985,1771771845530,-500.0,0.00044383,120]
[406345986,1771771845539,-500.0,0.00044383,120]
[406345987,1771771845549,-500.0,0.00044383,120]
[406345988,1771771845558,-500.0,0.00044383,120]
[406345989,1771771845568,-500.0,0.00044383,120]
[406345990,1771771845579,-500.0,0.00044383,120]
[406345991,1771771845588,-500.0,0.00044383,120]
[406345992,1771771845598,-500.0,0.00044383,120]
[406345993,1771771845608,-500.0,0.00044383,120]
[406345994,1771771845622,-500.0,0.00044383,120]
[406345995,1771771845632,-500.0,0.00044383,120]
[406345996,1771771845643,-500.0,0.00044383,120]
[406345997,1771771845652,-500.0,0.00044383,120]
[406345998,1771771845663,-500.0,0.00044383,120]
[406345999,1771771845673,-500.0,0.00044383,120]
[406346000,1771771845682,-500.0,0.00044383,120]
[406346001,1771771845693,-500.0,0.00044383,120]
[406346002,1771771845704,-151.0,0.00044383,120]
[406346003,1771771845714,-151.0,0.00044383,120]
[406346004,1771771845725,-283.936557,0.00044383,120]
[406346005,1771771845735,-283.936557,0.00044383,120]
[406346006,1771771845747,-283.936557,0.00044383,120]
[406346007,1771771845756,-283.936557,0.00044383,120]
[406346008,1771771845767,-152.344841,0.00044383,120]
[406346009,1771771845778,-512.16833799,0.00044383,120]
[406346010,1771771845790,-151.0,0.00044383,120]
[406346011,1771771845800,-151.0,0.00044383,60]
[406346012,1771771845809,-405.22470817,0.00044383,120]
[406346013,1771771845819,-591.403489,0.00044383,120]
[406346014,1771771845830,-591.403489,0.00044383,120]
[406346015,1771771845840,-591.403489,0.00044383,120]
[406346016,1771771845851,-591.403489,0.00044383,120]
[406346017,1771771845862,-151.0,0.00044383,120]
[406346018,1771771845871,-151.0,0.00044383,120]
[406346019,1771771845881,-151.0,0.00044383,120]
[406346020,1771771845891,-151.0,0.00044383,120]
[406346021,1771771845902,-153.178362,0.00044383,120]
[406346022,1771771845912,-151.0,0.00044383,120]
[406346023,1771771845922,-151.4934,0.00044383,120]
[406346024,1771771845932,-151.0,0.00044383,10]
[406346025,1771771845941,-151.0,0.00044383,120]
[406346026,1771771845951,-505.31118271,0.00044383,7]
[406346027,1771771845962,-151.0,0.00044383,120]
[406346030,1771771845972,-151.0,0.00044383,120]
[406346031,1771771845981,-151.0,0.00044383,120]
[406346033,1771771845991,-151.0,0.00044383,7]
[406346035,1771771846002,-151.0,0.00044383,120]
[406346036,1771771846023,-151.0,0.00044383,120]
[406346037,1771771846034,-151.0,0.00044383,120]
[406346038,1771771846046,-151.0,0.00044383,120]
[406346039,1771771846056,-151.0,0.00044383,120]
[406346040,1771771846066,-259.721724,0.00044383,120]
[406346041,1771771846076,-259.721724,0.00044383,120]
[406346042,1771771846086,-259.721724,0.00044383,120]
[406346043,1771771846096,-259.721724,0.00044383,120]
[406346044,1771771846106,-746.312741,0.00044383,120]
[406346045,1771771846116,-746.312741,0.00044383,120]
[406346046,1771771846125,-746.312741,0.00044383,120]
[406346047,1771771846135,-746.312741,0.00044383,120]
[406346048,1771771846144,-182.60301976,0.00044388,30]
[406346049,1771771846154,-150.0,0.000444,120]
[406346050,1771771846164,-150.0,0.000444,120]
[406346051,1771771846174,-150.0,0.000444,120]
[406346052,1771771846184,-182.60301976,0.00044434,30]
[406346053,1771771846194,-840.54020556,0.0004444,120]
[406346054,1771771846204,-150.0,0.00044445,7]
[406346055,1771771846214,-182.60301976,0.00044479,30]
[406346056,1771771846225,-182.60301976,0.00044525,30]
[406346057,1771771846235,-150.0,0.00044548,30]
[406346058,1771771846245,-2793.0,0.00044553,16]
[406346059,1771771846255,-182.60301976,0.00044571,30]
[406346060,1771771846266,-11873.63,0.000446,2]
[406346061,1771771846278,-1000.0,0.00044609,30]
[406346062,1771771846288,-182.60301976,0.00044617,30]
[406346063,1771771846298,-2840.0,0.00044617,16]
[406346064,1771771846308,-2840.0,0.00044621,16]
[406346065,1771771846319,-182.60301976,0.00044662,30]
[406346066,1771771846329,-276.5,0.0004469,14]
[406346067,1771771846340,-182.60301976,0.00044708,30]
[406346068,1771771846351,-200.0,0.00044728,120]
[406346069,1771771846361,-182.60301976,0.00044754,30]
[406346070,1771771846371,-303.81833795,0.00044755,60]
[406346071,1771771846381,-500.0,0.00044755,60]
[406346072,1771771846391,-182.60301976,0.000448,30]
[406346073,1771771846401,-2000.0,0.0004484,120]
[406346074,1771771846411,-2000.0,0.0004484,120]
[406346075,1771771846421,-2000.0,0.0004484,120]
[406346077,1771771846431,-2000.0,0.0004484,120]
[406346079,1771771846441,-2000.0,0.0004484,120]
[406346081,1771771846451,-182.60301976,0.00044845,30]
[406346083,1771771846461,-2840.0,0.00044846,16]
[406346085,1771771846471,-1000.0,0.00044883,30]
[406346086,1771771846481,-182.60301976,0.00044891,30]
[406346087,1771771846491,-153.0,0.000449,120]
[406346088,1771771846502,-150.0,0.00044925,30]
[406346089,1771771846512,-162.16,0.00044932,120]
[406346090,1771771846522,-182.60301976,0.00044937,30]
[406346091,1771771846534,-182.60301976,0.00044983,30]
[406346092,1771771846544,-700.0,0.00044993,6]
[406346093,1771771846554,-10000.0,0.00045,120]